[Event "European School-ch 2019"]
[Site "Mamaia"]
[Date "2019.06.03"]
[Round "4.49"]
[White "Karaivanova, Petya"]
[Black "Putinceva, Marina"]
[Result "1-0"]
[ECO "C50"]
[WhiteElo "1688"]
[BlackElo "1471"]
[Annotator "NA RC"]
[PlyCount "139"]
[EventDate "2019.05.31"]
[EventType "swiss"]
[EventCountry "ROU"]
[SourceTitle "playchess.com"]
[Source "ChessBase"]
[SourceQuality "1"]
[TimeControl "40/5400+30:1800+30"]

1. e4 {[%emt 0:00:00]} e5 {[%emt 0:00:00]} 2. Nf3 {[%emt 0:00:00]} Nc6 {[%emt 0:00:00]} 3. Bc4 {[%emt 0:00:00]} Bc5 {[%emt 0:00:03]} 4. O-O {[%emt 0:00:10]} Nf6 {[%emt 0:00:21]} 5. d3 {[%emt 0:00:13]} d6 {[%emt 0:00:26]} 6. c3 {[%emt 0:00:52]} Bg4 {[%emt 0:00:57]} 7. Re1 {[%emt 0:01:39]} Bb6 {[%emt 0:03:30]} 8. Nbd2 {[%emt 0:06:43]} Qd7 {[%emt 0:04:06]} 9. b4 {[%emt 0:05:55]} O-O {[%emt 0:05:40]} 10. Nf1 {[%emt 0:06:50]} Ne7 {[%emt 0:05:52]} 11. h3 {[%emt 0:00:41]} Be6 {[%emt 0:01:05]} 12. Bb3 {[%emt 0:04:21]} Ng6 {[%emt 0:03:27]} 13. Ng3 {[%emt 0:03:12]} Rfe8 {[%emt 0:12:05]} 14. d4 {[%emt 0:12:49]} Bxb3 {[%emt 0:02:15]} 15. Qxb3 {[%emt 0:01:40]} Red8 {[%emt 0:10:35]} 16. Bg5 {[%emt 0:02:16]} Ne7 {[%emt 0:07:57]} 17. Bxf6 {[%emt 0:01:47]} gxf6 {[%emt 0:00:04]} 18. Nh5 {[%emt 0:01:17]} Qe6 {[%emt 0:05:51]} 19. d5 {[%emt 0:00:41]} Qc8 {[%emt 0:00:24]} 20. Nxf6+ {[%emt 0:00:19]} Kg7 {[%emt 0:00:23]} 21. Nh5+ {[%emt 0:04:43]} Kh6 {[%emt 0:01:11]} 22. Ng3 {[%emt 0:08:52]} Rg8 {[%emt 0:01:07]} 23. Kf1 {[%emt 0:00:06]} f5 {[%emt 0:01:03]} 24. Nh4 {[%emt 0:07:57]} fxe4 {[%emt 0:05:02]} 25. Rxe4 {[%emt 0:02:28]} Qf8 {[%emt 0:02:36]} 26. Nf3 {[%emt 0:00:11]} Nf5 {[%emt 0:02:16]} 27. Nxf5+ {[%emt 0:02:03]} Qxf5 {[%emt 0:00:15]} 28. Qc2 {[%emt 0:03:10]} Raf8 {[%emt 0:02:50]} 29. Rh4+ {[%emt 0:05:33]} Kg7 {[%emt 0:01:09]} 30. Rg4+ {[%emt 0:06:30]} Kh8 {[%emt 0:00:24]} 31. Qxf5 {[%emt 0:01:16]} Rxf5 {[%emt 0:00:02]} 32. Re4 {[%emt 0:00:16]} Rgf8 {[%emt 0:02:26]} 33. Rae1 {[%emt 0:01:09]} Rf4 {[%emt 0:04:09]} 34. R1e2 {[%emt 0:01:48]} Kg7 {[%emt 0:01:43]} 35. Ke1 {[%emt 0:02:16]} R8f7 {[%emt 0:01:33]} 36. Rxf4 {[%emt 0:03:16]} Rxf4 {[%emt 0:00:31]} 37. Ng5 {[%emt 0:00:44]} Rc4 {[%emt 0:00:55]} 38. Ne4 {[%emt 0:00:18]} a5 {[%emt 0:01:11]} 39. a3 axb4 {[%emt 0:00:58]} 40. axb4 {[%emt 0:00:00]} Kg6 {[%emt 0:00:00]} 41. Kd2 {[%emt 0:06:09]} Ba7 {[%emt 0:05:04]} 42. Kd3 {[%emt 0:00:52]} b5 {[%emt 0:00:58]} 43. g3 {[%emt 0:02:10]} Kf5 {[%emt 0:06:05]} 44. Nd2 {[%emt 0:02:32]} e4+ {[%emt 0:00:43]} 45. Nxe4 {[%emt 0:02:39]} Rxe4 {[%emt 0:07:37]} 46. Rxe4 {[%emt 0:00:08]} Kf6 {[%emt 0:06:59]} 47. f4 {[%emt 0:01:22]} Bf2 {[%emt 0:00:25]} 48. g4 {[%emt 0:00:15]} Bg3 {[%emt 0:01:10]} 49. Ke2 {[%emt 0:01:06]} Bh4 {[%emt 0:00:47]} 50. Re6+ {[%emt 0:00:12]} Kg7 {[%emt 0:01:23]} 51. g5 {[%emt 0:00:28]} Bg3 {[%emt 0:00:37]} 52. Kf3 {[%emt 0:00:11]} Bh2 {[%emt 0:00:25]} 53. Re7+ {[%emt 0:00:15]} Kg8 {[%emt 0:06:12]} 54. Rxc7 {[%emt 0:00:42]} Bg1 {[%emt 0:00:48]} 55. Rd7 {[%emt 0:00:32]} Kh8 {[%emt 0:01:14]} 56. Rxd6 {[%emt 0:00:07]} Kg7 {[%emt 0:00:28]} 57. f5 {[%emt 0:00:25]} Bh2 {[%emt 0:00:09]} 58. Rd7+ {[%emt 0:00:04]} Kg8 {[%emt 0:00:08]} 59. Rb7 {[%emt 0:00:51]} Be5 {[%emt 0:00:35]} 60. Rxb5 {[%emt 0:00:36]} Bxc3 {[%emt 0:00:15]} 61. Rb7 {[%emt 0:00:30]} Be5 62. f6 {[%emt 0:00:15]} Bd6 {[%emt 0:00:25]} 63. b5 {[%emt 0:00:06]} Bc5 {[%emt 0:00:11]} 64. Ke4 {[%emt 0:00:15]} Bd6 {[%emt 0:00:19]} 65. Kf5 {[%emt 0:00:14]} h5 {[%emt 0:00:22]} 66. g6 {[%emt 0:00:18]} h4 {[%emt 0:00:25]} 67. Ke6 {[%emt 0:00:19]} Bf4 {[%emt 0:00:49]} 68. Ra7 {[%emt 0:00:14]} Kh8 {[%emt 0:01:00]} 69. Ra8+ {[%emt 0:00:10]} Bb8 {[%emt 0:00:13]} 70. Rxb8# {[%emt 0:00:04]} 1-0

[Event "European School-ch 2019"]
[Site "Mamaia"]
[Date "2019.06.03"]
[Round "4.50"]
[White "Shuqja, Klean"]
[Black "Aydin, Gulenay"]
[Result "0-1"]
[ECO "B70"]
[WhiteElo "1858"]
[BlackElo "1967"]
[Annotator "NA"]
[PlyCount "92"]
[EventDate "2019.05.31"]
[EventType "swiss"]
[EventCountry "ROU"]
[SourceTitle "playchess.com"]
[Source "ChessBase"]
[SourceQuality "1"]
[TimeControl "40/5400+30:1800+30"]

1. e4 {[%emt 0:00:00]} c5 {[%emt 0:00:00]} 2. Nf3 {[%emt 0:00:00]} d6 {[%emt 0:00:00]} 3. d4 {[%emt 0:00:00]} cxd4 {[%emt 0:00:00]} 4. Nxd4 {[%emt 0:00:00]} Nf6 {[%emt 0:00:00]} 5. Nc3 {[%emt 0:00:00]} g6 {[%emt 0:00:10]} 6. Be2 {[%emt 0:00:00]} Bg7 {[%emt 0:00:08]} 7. O-O {[%emt 0:00:00]} O-O {[%emt 0:00:13]} 8. Bg5 {[%emt 0:00:00]} Nc6 {[%emt 0:04:12]} 9. Nb3 {[%emt 0:00:00]} a6 {[%emt 0:07:18]} 10. f4 {[%emt 0:01:00]} b5 {[%emt 0:03:58]} 11. Bf3 {[%emt 0:01:19]} b4 {[%emt 0:06:19]} 12. Nd5 $15 {[%emt 0:10:15]} (12. Na4 $5 {[%cal Re4e5]} Qc7 13. c4 $11) 12... Nxd5 {[%emt 0:05:11]} 13. exd5 {[%emt 0:00:21]} Na5 {[%emt 0:04:55]} 14. Nxa5 {[%emt 0:08:52]} Qxa5 {[%emt 0:00:03]} 15. Kh1 {[%emt 0:07:00]} Re8 {[%emt 0:04:54]} 16. Qc1 {[%emt 0:06:34]} Bb7 {[%emt 0:05:11]} 17. a3 {[%emt 0:04:59]} b3 {[%emt 0:15:20]} 18. c4 {[%emt 0:12:13]} Rac8 {[%emt 0:04:29]} 19. Rb1 {[%emt 0:11:50]} Qa4 {[%emt 0:03:41]} 20. Bg4 {[%emt 0:20:48]} Rxc4 {[%emt 0:03:31]} 21. Bd7 {[%emt 0:00:38]} Rxc1 {[%emt 0:10:05]} 22. Bxa4 {[%emt 0:00:07]} Rxb1 {[%emt 0:03:42]} 23. Rxb1 {[%emt 0:00:11]} Rb8 {[%emt 0:00:25]} 24. Bxb3 {[%emt 0:04:49]} Bc8 {[%emt 0:03:10]} 25. Ba4 {[%emt 0:06:52]} Bf5 {[%emt 0:06:06]} 26. Re1 {[%emt 0:01:23]} Bxb2 {[%emt 0:01:08]} 27. Rxe7 {[%emt 0:03:23]} Bxa3 {[%emt 0:03:32]} 28. h3 {[%emt 0:00:23]} Kf8 {[%emt 0:02:41]} 29. Rc7 {[%emt 0:00:58]} Kg7 {[%emt 0:02:25]} 30. Rc6 {[%emt 0:00:33]} Be4 {[%emt 0:01:05]} 31. Be7 {[%emt 0:00:28]} Rb1+ {[%emt 0:00:50]} 32. Kh2 {[%emt 0:00:04]} Rb2 {[%emt 0:00:15]} 33. h4 {[%emt 0:00:57]} Bxg2 {[%emt 0:00:56]} 34. Kg3 {[%emt 0:00:18]} Bxd5 {[%emt 0:00:24]} 35. Rxa6 {[%emt 0:00:26]} Rg2+ {[%emt 0:00:29]} 36. Kh3 {[%emt 0:00:05]} Rd2 {[%emt 0:00:29]} 37. Bb5 {[%emt 0:01:05]} Bc5 {[%emt 0:00:29]} 38. Kg3 {[%emt 0:00:35]} Rg2+ {[%emt 0:00:32]} 39. Kh3 {[%emt 0:00:03]} Rb2 {[%emt 0:00:28]} 40. Bc6 {[%emt 0:00:00]} Be6+ {[%emt 0:00:00]} 41. Kg3 {[%emt 0:01:11]} h5 {[%emt 0:02:55]} 42. Ra8 {[%emt 0:17:18]} Bg4 {[%emt 0:03:20]} 43. f5 {[%emt 0:06:45]} Bf2+ {[%emt 0:02:13]} 44. Kf4 {[%emt 0:00:50]} Rb4+ {[%emt 0:00:38]} 45. Be4 {[%emt 0:01:31]} Bxf5 {[%emt 0:00:40]} 46. Bf8+ {[%emt 0:01:35]} Kf6 0-1

[Event "European School-ch 2019"]
[Site "Mamaia"]
[Date "2019.06.03"]
[Round "4.51"]
[White "Mamardashvili, Ana"]
[Black "Kapicakova, Lucia"]
[Result "1/2-1/2"]
[ECO "B17"]
[WhiteElo "1415"]
[BlackElo "1776"]
[Annotator "NA RC"]
[PlyCount "96"]
[EventDate "2019.05.31"]
[EventType "swiss"]
[EventCountry "ROU"]
[SourceTitle "playchess.com"]
[Source "ChessBase"]
[SourceQuality "1"]
[TimeControl "40/5400+30:1800+30"]

1. e4 {[%emt 0:00:00]} c6 {[%emt 0:00:00]} 2. d4 {[%emt 0:00:00]} d5 {[%emt 0:00:00]} 3. Nc3 {[%emt 0:00:00]} dxe4 {[%emt 0:00:00]} 4. Nxe4 {[%emt 0:00:00]} Nd7 {[%emt 0:00:00]} 5. Nf3 {[%emt 0:00:00]} Ngf6 {[%emt 0:00:00]} 6. Ng3 {[%emt 0:00:08]} g6 {[%emt 0:00:14]} 7. Bd3 {[%emt 0:03:40]} Bg7 {[%emt 0:00:44]} 8. Qe2 {[%emt 0:04:32]} Nb6 {[%emt 0:03:50]} 9. h3 {[%emt 0:07:12]} Qc7 {[%emt 0:06:32]} 10. c4 {[%emt 0:05:48]} O-O {[%emt 0:08:27]} 11. O-O {[%emt 0:00:38]} Re8 {[%emt 0:08:48]} 12. Be3 {[%emt 0:07:05]} Nbd7 {[%emt 0:03:10]} 13. Qd2 {[%emt 0:08:34]} e5 {[%emt 0:13:31]} 14. Nxe5 {[%emt 0:03:35]} Nxe5 {[%emt 0:01:13]} 15. dxe5 {[%emt 0:01:46]} Qxe5 {[%emt 0:00:28]} 16. b3 {[%emt 0:09:20]} Qe7 {[%emt 0:04:51]} 17. Rad1 {[%emt 0:04:50]} Be6 {[%emt 0:03:13]} 18. Rfe1 {[%emt 0:03:08]} Nd7 {[%emt 0:09:29]} 19. Bf4 {[%emt 0:07:25]} Rad8 {[%emt 0:04:59]} 20. Qc1 {[%emt 0:07:03]} Nc5 {[%emt 0:05:10]} 21. Bb1 {[%emt 0:00:41]} a5 {[%emt 0:02:36]} 22. Rxd8 {[%emt 0:07:02]} Rxd8 {[%emt 0:00:13]} 23. Rd1 {[%emt 0:00:34]} f5 {[%emt 0:04:30]} 24. Rxd8+ {[%emt 0:06:38]} Qxd8 {[%emt 0:00:07]} 25. Qd2 {[%emt 0:00:28]} Qxd2 {[%emt 0:02:29]} 26. Bxd2 {[%emt 0:00:02]} b6 {[%emt 0:03:09]} 27. Bf4 {[%emt 0:02:25]} b5 {[%emt 0:04:47]} 28. cxb5 {[%emt 0:05:51]} cxb5 {[%emt 0:00:14]} 29. Bc2 {[%emt 0:03:13]} a4 {[%emt 0:03:24]} 30. bxa4 {[%emt 0:00:40]} bxa4 {[%emt 0:00:15]} 31. Be3 {[%emt 0:01:08]} Bf8 {[%emt 0:03:13]} 32. Bxc5 {[%emt 0:00:35]} Bxc5 {[%emt 0:00:05]} 33. Bxa4 {[%emt 0:00:07]} Bxa2 {[%emt 0:00:14]} 34. Ne2 {[%emt 0:00:51]} Kf7 {[%emt 0:01:03]} 35. g3 {[%emt 0:00:54]} Kf6 {[%emt 0:01:50]} 36. h4 {[%emt 0:01:01]} Ke5 {[%emt 0:01:24]} 37. Bc6 {[%emt 0:00:30]} Bc4 {[%emt 0:01:32]} 38. Nf4 {[%emt 0:00:25]} Bd6 {[%emt 0:01:18]} 39. Bb7 {[%emt 0:00:49]} Kd4 {[%emt 0:00:53]} 40. Ng2 {[%emt 0:00:00]} h6 {[%emt 0:00:00]} 41. Bc6 {[%emt 0:08:06]} Bf7 {[%emt 0:06:55]} 42. Kf1 {[%emt 0:03:46]} g5 {[%emt 0:05:32]} 43. hxg5 {[%emt 0:00:51]} hxg5 {[%emt 0:00:09]} 44. f4 {[%emt 0:06:31]} gxf4 {[%emt 0:08:47]} 45. Nxf4 {[%emt 0:01:28]} Bxf4 {[%emt 0:06:44]} 46. gxf4 {[%emt 0:00:03]} Ke3 {[%emt 0:00:14]} 47. Bd7 {[%emt 0:00:11]} Kxf4 {[%emt 0:00:29]} 48. Bxf5 {[%emt 0:00:04]} Ke5 1/2-1/2

[Event "European School-ch 2019"]
[Site "Mamaia"]
[Date "2019.06.03"]
[Round "4.52"]
[White "Ignacio Lopez, Anahi"]
[Black "Puia, Alexia-Teodora"]
[Result "0-1"]
[ECO "B22"]
[WhiteElo "1362"]
[BlackElo "1543"]
[Annotator "NA"]
[PlyCount "72"]
[EventDate "2019.05.31"]
[EventType "swiss"]
[EventCountry "ROU"]
[SourceTitle "playchess.com"]
[Source "ChessBase"]
[SourceQuality "1"]
[TimeControl "40/5400+30:1800+30"]

1. e4 {[%emt 0:00:00]} c5 {[%emt 0:00:00]} 2. c3 {[%emt 0:00:06]} Nf6 {[%emt 0:00:00]} 3. e5 {[%emt 0:00:56]} Nd5 {[%emt 0:00:00]} 4. Nf3 {[%emt 0:01:15]} d6 {[%emt 0:01:10]} 5. d4 {[%emt 0:00:57]} cxd4 {[%emt 0:00:15]} 6. cxd4 {[%emt 0:03:13]} e6 {[%emt 0:00:35]} 7. Bc4 {[%emt 0:02:29]} Nc6 {[%emt 0:01:03]} 8. Bxd5 {[%emt 0:03:26]} exd5 {[%emt 0:00:31]} 9. Nc3 {[%emt 0:00:43]} dxe5 {[%emt 0:05:51]} 10. dxe5 {[%emt 0:00:36]} Bb4 {[%emt 0:04:39]} 11. O-O {[%emt 0:02:14]} Bxc3 {[%emt 0:01:33]} 12. bxc3 {[%emt 0:00:21]} O-O {[%emt 0:06:05]} 13. Ba3 {[%emt 0:06:53]} Re8 {[%emt 0:00:14]} 14. Bd6 {[%emt 0:00:37]} Be6 {[%emt 0:07:57]} 15. Rb1 {[%emt 0:02:53]} b6 {[%emt 0:01:16]} 16. Qa4 {[%emt 0:06:46]} Na5 {[%emt 0:03:37]} 17. Qf4 {[%emt 0:08:01]} Nc4 {[%emt 0:04:41]} 18. Bb4 {[%emt 0:02:07]} a5 {[%emt 0:01:55]} 19. Bd6 {[%emt 0:01:01]} Nxd6 {[%emt 0:00:23]} 20. exd6 {[%emt 0:00:06]} Rc8 {[%emt 0:00:13]} 21. Qd4 {[%emt 0:01:57]} Rc6 {[%emt 0:00:54]} 22. Rb5 {[%emt 0:01:20]} Rxd6 {[%emt 0:05:16]} 23. h3 {[%emt 0:01:08]} Bf5 {[%emt 0:05:57]} 24. Rd1 {[%emt 0:01:54]} Bc2 {[%emt 0:08:30]} 25. Rd2 {[%emt 0:01:48]} Re4 {[%emt 0:00:35]} 26. Qxd5 {[%emt 0:02:28]} Rxd5 {[%emt 0:01:12]} 27. Rbxd5 {[%emt 0:00:10]} Qf8 {[%emt 0:01:05]} 28. Rxc2 {[%emt 0:01:57]} h6 {[%emt 0:03:56]} 29. g3 {[%emt 0:03:45]} Qc8 {[%emt 0:03:21]} 30. Kg2 {[%emt 0:01:35]} Kh7 {[%emt 0:01:45]} 31. Kh2 {[%emt 0:02:14]} Rc4 {[%emt 0:01:04]} 32. Rd3 {[%emt 0:00:41]} b5 {[%emt 0:00:48]} 33. Nd4 {[%emt 0:05:15]} b4 {[%emt 0:00:46]} 34. Ne2 {[%emt 0:03:27]} Qf5 {[%emt 0:00:43]} 35. Rdd2 {[%emt 0:04:40]} Qxf2+ {[%emt 0:00:46]} 36. Kh1 {[%emt 0:00:14]} bxc3 {[%emt 0:00:46]} 0-1

[Event "European School-ch 2019"]
[Site "Mamaia"]
[Date "2019.06.03"]
[Round "4.53"]
[White "Obada, Ema"]
[Black "Zyapaeva, Polina"]
[Result "1/2-1/2"]
[ECO "B43"]
[WhiteElo "1889"]
[BlackElo "1806"]
[Annotator "NA"]
[PlyCount "71"]
[EventDate "2019.05.31"]
[EventType "swiss"]
[EventCountry "ROU"]
[SourceTitle "playchess.com"]
[Source "ChessBase"]
[SourceQuality "1"]
[TimeControl "40/5400+30:1800+30"]

1. e4 {[%emt 0:00:00]} c5 {[%emt 0:00:00]} 2. Nf3 {[%emt 0:00:00]} e6 {[%emt 0:00:00]} 3. d4 {[%emt 0:00:00]} cxd4 {[%emt 0:00:00]} 4. Nxd4 {[%emt 0:00:00]} a6 {[%emt 0:00:00]} 5. Nc3 {[%emt 0:00:00]} Qc7 {[%emt 0:00:21]} 6. Bd3 {[%emt 0:00:13]} b5 {[%emt 0:03:49]} 7. a3 {[%emt 0:00:28]} Bb7 {[%emt 0:00:46]} 8. O-O {[%emt 0:01:05]} Nf6 {[%emt 0:01:34]} 9. Qe2 {[%emt 0:04:46]} Nc6 {[%emt 0:09:07]} 10. Nxc6 {[%emt 0:03:56]} Qxc6 $11 {[%emt 0:04:57]} 11. Kh1 {[%emt 0:04:24]} b4 {[%emt 0:15:49]} 12. axb4 {[%emt 0:01:44]} Bxb4 {[%emt 0:00:05]} 13. Ra4 {[%emt 0:07:40]} a5 {[%emt 0:06:30]} 14. Bg5 {[%emt 0:14:34]} O-O {[%emt 0:22:46]} 15. Bxf6 {[%emt 0:05:30]} gxf6 {[%emt 0:00:08]} 16. Nb5 {[%emt 0:00:43]} Kh8 {[%emt 0:02:31]} 17. c3 {[%emt 0:00:35]} Be7 {[%emt 0:01:28]} 18. Rfa1 {[%emt 0:00:30]} Bd8 {[%emt 0:01:48]} 19. Qh5 {[%emt 0:09:57]} Rg8 {[%emt 0:13:06]} 20. Rd4 {[%emt 0:16:43]} Rg6 {[%emt 0:03:41]} 21. Nd6 {[%emt 0:04:36]} Kg8 {[%emt 0:00:15]} 22. Bb5 {[%emt 0:00:50]} Qb6 {[%emt 0:02:22]} 23. Nxf7 {[%emt 0:02:03]} d5 {[%emt 0:01:08]} 24. Be8 {[%emt 0:06:26]} Qxb2 {[%emt 0:00:49]} 25. Rg1 {[%emt 0:00:05]} Bb6 {[%emt 0:01:58]} 26. Nh6+ Kg7 {[%emt 0:00:45]} 27. Bxg6 {[%emt 0:04:15]} hxg6 {[%emt 0:00:10]} 28. Qh3 {[%emt 0:00:32]} Bxd4 {[%emt 0:00:36]} 29. cxd4 {[%emt 0:00:33]} Rh8 {[%emt 0:01:01]} 30. e5 {[%emt 0:00:03]} fxe5 {[%emt 0:01:37]} 31. Qxe6 {[%emt 0:00:45]} Kxh6 {[%emt 0:00:50]} 32. Qh3+ {[%emt 0:00:16]} Kg7 {[%emt 0:00:06]} 33. Qd7+ {[%emt 0:00:03]} Kh6 {[%emt 0:00:05]} 34. Qh3+ {[%emt 0:00:05]} Kg7 {[%emt 0:00:04]} 35. Qd7+ {[%emt 0:00:04]} Kh6 {[%emt 0:00:23]} 36. Qh3+ {[%emt 0:00:06]} 1/2-1/2

[Event "European School-ch 2019"]
[Site "Mamaia"]
[Date "2019.06.03"]
[Round "4.54"]
[White "Bubeeva, Larisa"]
[Black "Ruzic, Pia Marie"]
[Result "0-1"]
[ECO "A45"]
[WhiteElo "1548"]
[BlackElo "1917"]
[Annotator "NA"]
[PlyCount "60"]
[EventDate "2019.05.31"]
[EventType "swiss"]
[EventCountry "ROU"]
[SourceTitle "playchess.com"]
[Source "ChessBase"]
[SourceQuality "1"]
[TimeControl "40/5400+30:1800+30"]

1. d4 {[%emt 0:00:00]} Nf6 {[%emt 0:00:00]} 2. Bf4 {[%emt 0:00:00]} g6 {[%emt 0:00:00]} 3. Nc3 {[%emt 0:00:00]} Bg7 {[%emt 0:00:00]} 4. e4 {[%emt 0:00:00]} d6 {[%emt 0:00:19]} 5. Qd2 {[%emt 0:00:05]} O-O {[%emt 0:00:59]} 6. O-O-O {[%emt 0:00:18]} c6 {[%emt 0:01:25]} 7. Bd3 {[%emt 0:06:23]} Qc7 {[%emt 0:06:41]} 8. Bh6 $14 {[%emt 0:16:07]} e5 {[%emt 0:02:27]} 9. Bxg7 {[%emt 0:10:03]} Kxg7 {[%emt 0:00:07]} 10. dxe5 {[%emt 0:02:48]} dxe5 {[%emt 0:00:07]} 11. f3 {[%emt 0:00:21]} b5 {[%emt 0:10:26]} 12. g4 {[%emt 0:02:00]} a5 {[%emt 0:02:52]} 13. h4 {[%emt 0:02:33]} a4 {[%emt 0:03:08]} 14. h5 {[%emt 0:06:23]} Be6 {[%emt 0:05:50]} 15. hxg6 {[%emt 0:11:12]} fxg6 {[%emt 0:00:06]} 16. Nh3 {[%emt 0:13:00]} Na6 {[%emt 0:08:56]} 17. Ng5 {[%emt 0:02:18]} Bg8 {[%emt 0:00:07]} 18. Qe3 {[%emt 0:02:57]} Qa7 {[%emt 0:04:26]} 19. Qd2 {[%emt 0:09:37]} Nb4 {[%emt 0:04:37]} 20. Kb1 {[%emt 0:01:04]} Nxd3 {[%emt 0:02:33]} 21. Qxd3 {[%emt 0:00:39]} b4 {[%emt 0:09:39]} 22. Qd6 {[%emt 0:08:25]} bxc3 {[%emt 0:07:45]} 23. Qxe5 {[%emt 0:00:10]} h6 {[%emt 0:00:41]} 24. Ne6+ {[%emt 0:00:24]} Bxe6 {[%emt 0:00:09]} 25. Qxe6 {[%emt 0:00:05]} Qb7 {[%emt 0:01:41]} 26. b3 {[%emt 0:00:38]} axb3 {[%emt 0:00:18]} 27. cxb3 {[%emt 0:01:32]} c2+ {[%emt 0:02:28]} 28. Kxc2 {[%emt 0:01:42]} Rxa2+ {[%emt 0:00:04]} 29. Kb1 {[%emt 0:01:07]} Qa7 {[%emt 0:07:28]} 30. Rhf1 {[%emt 0:00:47]} Qa3 {[%emt 0:02:46]} 0-1

[Event "European School-ch 2019"]
[Site "Mamaia"]
[Date "2019.06.03"]
[Round "4.55"]
[White "Babayeva, Nasrin"]
[Black "Vorobyova, Ekaterina"]
[Result "0-1"]
[ECO "A20"]
[WhiteElo "1451"]
[BlackElo "1795"]
[Annotator "NA"]
[PlyCount "68"]
[EventDate "2019.05.31"]
[EventType "swiss"]
[EventCountry "ROU"]
[SourceTitle "playchess.com"]
[Source "ChessBase"]
[SourceQuality "1"]
[TimeControl "40/5400+30:1800+30"]

1. c4 {[%emt 0:00:00]} e5 {[%emt 0:00:00]} 2. g3 {[%emt 0:00:00]} Nf6 {[%emt 0:00:00]} 3. Bg2 {[%emt 0:00:00]} c6 {[%emt 0:00:49]} 4. Nf3 {[%emt 0:00:01]} Qc7 {[%emt 0:00:36]} 5. O-O {[%emt 0:01:36]} Be7 {[%emt 0:01:50]} 6. Nc3 {[%emt 0:01:33]} O-O {[%emt 0:01:57]} 7. e3 {[%emt 0:01:39]} d5 {[%emt 0:04:37]} 8. cxd5 {[%emt 0:01:43]} cxd5 {[%emt 0:00:06]} 9. d4 {[%emt 0:02:24]} e4 {[%emt 0:01:36]} 10. Ne1 {[%emt 0:00:22]} b6 {[%emt 0:12:32]} 11. f3 {[%emt 0:01:38]} Bb7 {[%emt 0:01:14]} 12. Qc2 {[%emt 0:01:49]} exf3 {[%emt 0:05:22]} 13. Bxf3 {[%emt 0:02:59]} Na6 {[%emt 0:02:35]} 14. a3 {[%emt 0:00:56]} Rac8 {[%emt 0:00:55]} 15. Qg2 {[%emt 0:02:12]} Qc4 {[%emt 0:07:59]} 16. Bd2 {[%emt 0:03:11]} Nc7 {[%emt 0:15:28]} 17. Rc1 {[%emt 0:00:47]} Qa6 {[%emt 0:00:28]} 18. Be2 {[%emt 0:00:44]} b5 {[%emt 0:01:15]} 19. Nd3 {[%emt 0:03:24]} Ne4 {[%emt 0:03:45]} 20. Nxe4 {[%emt 0:00:35]} dxe4 {[%emt 0:00:06]} 21. Nc5 {[%emt 0:02:55]} Bxc5 {[%emt 0:03:39]} 22. Rxc5 {[%emt 0:00:10]} Qg6 {[%emt 0:13:12]} 23. Rfc1 {[%emt 0:02:19]} Ne6 {[%emt 0:01:10]} 24. Rxc8 {[%emt 0:02:07]} Rxc8 {[%emt 0:04:19]} 25. Rxc8+ {[%emt 0:03:20]} Bxc8 {[%emt 0:00:04]} 26. Bxb5 {[%emt 0:15:48]} Ng5 {[%emt 0:00:29]} 27. Bc3 {[%emt 0:01:17]} Nh3+ {[%emt 0:05:16]} 28. Kh1 {[%emt 0:03:36]} Qg5 {[%emt 0:00:39]} 29. Qf1 {[%emt 0:11:57]} Qxe3 {[%emt 0:01:29]} 30. Bc4 {[%emt 0:04:14]} Nf2+ {[%emt 0:03:06]} 31. Kg1 {[%emt 0:00:09]} Nh3+ {[%emt 0:00:08]} 32. Kh1 {[%emt 0:00:12]} Qf3+ {[%emt 0:05:07]} 33. Qxf3 {[%emt 0:00:20]} exf3 {[%emt 0:00:05]} 34. d5 {[%emt 0:07:22]} Bf5 {[%emt 0:00:12]} 0-1